{"text_format":"2","workbook":"xlsx","n_sheets":4,"sheets":["Záradék","Összesítő","Elektromosenergia-ellátás, vill","Munka3"],"not_rendered":{"charts":0,"images":0,"macros":0,"external_links":0,"defined_names":0,"comments":0,"pivot_tables":0},"unopened":[],"bounds":{"document_bytes":16777216,"sheet_cells":100000,"run_cost":"one","rows_first":2000,"rows_last":500,"rows_between":2000,"halvings":0,"cell_chars":16384,"cell_head_chars":4096},"cells_cut":0,"cells_raw":0,"read":"whole","date_system":"1900"}

{"sheet":"Záradék","index":0,"n_rows":34,"n_cols":4,"rows_kept":34,"cut":false,"hidden":false,"merged":[[6,0,6,3],[0,0,0,3],[1,0,1,3],[2,0,2,3],[3,0,3,3],[4,0,4,3],[5,0,5,3],[21,0,21,3],[25,2,25,3],[28,2,28,3],[29,2,29,3],[33,1,33,2],[26,2,26,3],[27,2,27,3]]}
["SZTE GMF"]
{"$rows_empty":7}
["Név :                                  ",null,"                                       "]
["  SZTE ÁOK Kórélettani Intézet                                     ",null,"                                       "]
["Cím :                                  ",null," Kelt:      20.. év...........hó...nap "]
["  Szeged, Semmelweis u. 1.                                     ",null," Szám         :.............           "]
["                                       ",null," KSH besorolás:.....................   "]
["                                       ",null," Teljesítés:20.. év...........hó...nap "]
["A munka leírása:                       ",null," Készítette   :.....................   "]
[" Alagsori helyiségek elektromos felújítása                                                                             "]
["                                                                              "]
["                                                                              "]
["Készült:                                                                      "]
["                                                                              "]
[]
["Költségvetés főösszesítő (HUF)"]
["Megnevezés",null,"Anyagköltség","Díjköltség"]
["1. Építmény közvetlen költségei",null,{"$f":"ROUND(SUM(Összesítő!B2),0)","v":400},{"$f":"ROUND(SUM(Összesítő!C2),0)","v":400}]
["1.1 Közvetlen önköltség összesen",null,{"$f":"ROUND(C24,0)","v":400},400]
["2.1 Közvetlen költség összesen",null,{"$f":"ROUND(C25+D25,0)","v":800}]
["2.2 Tartalékkeret",0.05,{"$f":"ROUND(C26*B27,0)","v":40}]
["2.3 ÁFA vetítési alap",null,{"$f":"ROUND(C26+C27,0)","v":840}]
["2.4 Áfa",0.27,{"$f":"ROUND(C28*B29,0)","v":227}]
["3.  A munka ára",null,{"$f":"ROUND(C28+C29,0)","v":1067}]
[]
[]
[]
[null,"Aláírás"]

{"sheet":"Összesítő","index":1,"n_rows":3,"n_cols":3,"rows_kept":3,"cut":false,"hidden":false,"merged":[]}
["Munkanem megnevezése","Anyag összege","Díj összege"]
["Elektromosenergia-ellátás, villanyszerelés",{"$f":"'Elektromosenergia-ellátás, vill'!H57","v":400},{"$f":"'Elektromosenergia-ellátás, vill'!I57","v":400}]
["Összesen:",{"$f":"ROUND(SUM(B2),0)","v":400},400]

{"sheet":"Elektromosenergia-ellátás, vill","index":2,"n_rows":57,"n_cols":9,"rows_kept":57,"cut":false,"hidden":false,"merged":[]}
["Ssz.","Tételszám","Tétel szövege","Menny.","Egység","Anyag egységár","Díj egységre","Anyag összesen","Díj összesen"]
[1,"71-000-1.3.1","Vezetékek, kábelek és szerelvények bontása; PVC védőcső leszerelés tartószerkezetről, DN 100-ig",200,"m",2,2,{"$f":"ROUND(D2*F2,0)","v":400},{"$f":"ROUND(D2*G2,0)","v":400}]
[]
[2,"71-000-1.11","Vezetékek, kábelek és szerelvények bontása; kapcsolók, csatlakozó aljzatok, falifoglalatok, csengők, reduktorok, erős- vagy gyengeáramú nyomók, termosztátok, lépcsőházi automaták, jelzők leszerelése",45,"db",null,null,{"$f":"ROUND(D4*F4,0)","v":0},{"$f":"ROUND(D4*G4,0)","v":0}]
[]
[3,"71-001-1.1.1.1.1-0110116","Merev, simafalú műanyag védőcső elhelyezése, elágazó dobozokkal, előre elkészített falhoronyba, vékonyfalú kivitelben, könnyű mechanikai igénybevételre, Névleges méret: 11-16 mm HYDRO-THERM beltéri Mü III. vékonyfalú, hajlítható merev műanyag szürke",110,"m",null,null,{"$f":"ROUND(D6*F6,0)","v":0},{"$f":"ROUND(D6*G6,0)","v":0}]
[null,null,"védőcső 16 mm, Kód: MU-III 16"]
[]
[4,"71-001-24.2.1-0130304","Műanyag vezetékcsatorna, padlószegélycsatorna elhelyezése előre elkészített tartószerkezetre szerelve, idomdarabokkal, szélesség:  40 mm-ig UNIVOLT minicsatorna \"STANDARD\" MIK 25/40 mm, fehér",40,"m",null,null,{"$f":"ROUND(D9*F9,0)","v":0},{"$f":"ROUND(D9*G9,0)","v":0}]
[]
[5,"71-001-24.2.4-0533831","Műanyag vezetékcsatorna, padlószegélycsatorna elhelyezése előre elkészített tartószerkezetre szerelve, idomdarabokkal, szélesség:  100 mm felett LEGRAND DLP szerelvényezhető csatorna 105x50 mm, 85 mm széles fedéllel, fehér, R: 10422",42,"m",null,null,{"$f":"ROUND(D11*F11,0)","v":0},{"$f":"ROUND(D11*G11,0)","v":0}]
[]
[6,"71-002-21.1-0221521","Kábelszerű vezeték elhelyezése előre elkészített tartószerkezetre, 1-12 erű rézvezetővel, elágazó dobozokkal és kötésekkel, szigetelési elenállás méréssel, a szerelvényekhez csatlakozó vezetékvégek bekötése nélkül, keresztmetszet: 0,5-2,5 mm2 NYM 300/500V",120,"m",null,null,{"$f":"ROUND(D13*F13,0)","v":0},{"$f":"ROUND(D13*G13,0)","v":0}]
[null,null,"3x 1,5 mm2, tömör rézvezetővel (MBCu)"]
[]
[7,"71-002-21.1-0221522","Kábelszerű vezeték elhelyezése előre elkészített tartószerkezetre, 1-12 erű rézvezetővel, elágazó dobozokkal és kötésekkel, szigetelési elenállás méréssel, a szerelvényekhez csatlakozó vezetékvégek bekötése nélkül, keresztmetszet: 0,5-2,5 mm2 NYM 300/500V",300,"m",null,null,{"$f":"ROUND(D16*F16,0)","v":0},{"$f":"ROUND(D16*G16,0)","v":0}]
[null,null,"3x 2,5 mm2, tömör rézvezetővel (MBCu)"]
[]
[8,"71-005-1.1.1.2-0562254","Komplett világítási szerelvények; Fali kapcsolók elhelyezése, süllyesztve, 10A kétpólusú kapcsolók LEGRAND Randevú kétpólusú kapcsoló  szürke végdarabbal R: 691842",5,"db",null,null,{"$f":"ROUND(D19*F19,0)","v":0},{"$f":"ROUND(D19*G19,0)","v":0}]
[]
[9,"71-005-1.11.1.1.1-0561954","Komplett világítási szerelvények; Fali kapcsolók elhelyezése, süllyesztve, 10A kétpólusú kapcsolók LEGRAND Randevú CSILLÁR kapcsoló  szürke végdarabbal R: 691842",2,"db",null,null,{"$f":"ROUND(D21*F21,0)","v":0},{"$f":"ROUND(D21*G21,0)","v":0}]
[]
[9,"71-005-1.11.1.1.1-0561954","Komplett világítási szerelvények; Fali kapcsolók elhelyezése, süllyesztve, 10A kétpólusú kapcsolók LEGRAND Randevú váltó kapcsoló  szürke végdarabbal R: 691842",2,"db",null,null,{"$f":"ROUND(D23*F23,0)","v":0},{"$f":"ROUND(D23*G23,0)","v":0}]
[]
[9,"71-005-1.11.1.1.1-0561954","Komplett világítási szerelvények; Csatlakozóaljzat elhelyezése, süllyesztve, 16A, földelt, egyes csatlakozóaljzat (2P+F) LEGRAND Valena csatlakozóaljzat 2P+F kerettel, fehér, R: 692706",83,"db",null,null,{"$f":"ROUND(D25*F25,0)","v":0},{"$f":"ROUND(D25*G25,0)","v":0}]
[]
[10,"71-005-1.31.2-0533643","Komplett világítási szerelvények; Telefon és PC csatlakozóaljzat elhelyezése (egyes/kettős), PC LEGRAND Galea 2xRJ45 Cat5e STP mechanizmus, R: 775764",12,"db",null,null,{"$f":"ROUND(D27*F27,0)","v":0},{"$f":"ROUND(D27*G27,0)","v":0}]
[]
[11,"71-008-9.4.1-0132002","Kismegszakítók elhelyezése kalapsínes szerelőlapra, \"B\", \"C\" és \"D\" jelleggörbével, 10 kA zárlati szilárdsággal, 1 pólusú DOEPKE DLS 5 kismegszakító 1P, 10A, B, R: D0009913051",3,"db",null,null,{"$f":"ROUND(D29*F29,0)","v":0},{"$f":"ROUND(D29*G29,0)","v":0}]
[]
[12,"71-008-9.4.1-0132003","Kismegszakítók elhelyezése kalapsínes szerelőlapra, \"B\", \"C\" és \"D\" jelleggörbével, 10 kA zárlati szilárdsággal, 1 pólusú DOEPKE DLS 5 kismegszakító 1P, 16A, B, R: D0009913053",20,"db",null,null,{"$f":"ROUND(D31*F31,0)","v":0},{"$f":"ROUND(D31*G31,0)","v":0}]
[]
[13,"71-008-11.1.2.1-0140022","Áram-védőkapcsolók elhelyezése, váltakozó- és pulzáló egyenáramú kioldásra, gyorskioldással (6...40 ms), 10 kA zárlati szilárdsággal, 2 pólusú DOEPKE DFS2 hibaáramvédő relé, 40A/ 30 mA, R: D0009134601",5,"db",null,null,{"$f":"ROUND(D33*F33,0)","v":0},{"$f":"ROUND(D33*G33,0)","v":0}]
[]
[14,"71-010-1.1.2.2.2-0141002","Felületre szerelt lámpatest elhelyezése  előre elkészített tartószerkezetre, tükrös, nyitott, fénycsöves kivetelben, T8, T12 fénycsöves elektronikával szerelt (A energia osztályú), káprázáskorlátozott (V, parabola tükrös) E-FAMILY (HOLUX) E-lux 258/M/E",12,"db",null,null,{"$f":"ROUND(D35*F35,0)","v":0},{"$f":"ROUND(D35*G35,0)","v":0}]
[null,null,"2x58W fénycsöves (G13) V-tükrös lámpatest, IP 20, Csz:125150050"]
[]
[15,"K- tétel","Gépészeti berendezések bekötése, villamos energiaellátásának biztosítása, leválasztó kapcsoló létesítésével",4,"db",null,null,{"$f":"ROUND(D38*F38,0)","v":0},{"$f":"ROUND(D38*G38,0)","v":0}]
[]
[16,"71-013-9","Villám és érintésvédelmi mérés és jegyzőkönyv készítése",70,"mp*",null,null,{"$f":"ROUND(D40*F40,0)","v":0},{"$f":"ROUND(D40*G40,0)","v":0}]
[]
[17,"71-001-24.1.1-0530033","Műanyag vezetékcsatorna, padlószegélycsatorna elhelyezése előre elkészített tartószerkezetre szerelve, idomdarabok nélkül, szélesség: 40 mm-ig LEGRAND Transcab 25x60 perforált műanyag vezetékcsatorna R: 636202",90,"m",null,null,{"$f":"ROUND(D42*F42, 0)","v":0},{"$f":"ROUND(D42*G42, 0)","v":0}]
[]
[18,"71-010-1.6-0146101","Bútolap felületre szerelt ledszallag felszerelése , 2 db 440 cm, 1db 470cm, 1db 560cm. A Led szalagok felszerelését kompletten a szükséges transzformátorral szerelve kérjük telepíteni.",1,"db",null,null,{"$f":"ROUND(D44*F44, 0)","v":0},{"$f":"ROUND(D44*G44, 0)","v":0}]
[19,"72-041-6.1.1.3.1","Strukturált adatátviteli kábel elhelyezése sodrott rézvezetővel, kábeltálcára vagy kábelcsatornába fektetve, patch kábel, 500 MHz átviteli sebesség Cat.6A S/FTP",700,"m",null,null,{"$f":"ROUND(D45*F45, 0)","v":0},{"$f":"ROUND(D45*G45, 0)","v":0}]
[]
[20,"72-041-15.1-0110089","Patch panel elhelyezése előre kialakított rack szekrényben, 4-96 Port, RJ 45 Cat. 5 komplett PannonCom-Kábel Fibrain patch panel, FTP cat 5e, 24 port, 1U, Csz: XE100.250",1,"db",null,null,{"$f":"ROUND(D47*F47, 0)","v":0},{"$f":"ROUND(D47*G47, 0)","v":0}]
[]
[21,"72-041-102-0112135","Összekötők felszerelése strukturált réz kábelekre Cat. 5 vagy Cat. 6 Összekötő falik.-re Cat5E UTP AGE-GX",15,"db",null,null,{"$f":"ROUND(D49*F49, 0)","v":0},{"$f":"ROUND(D49*G49, 0)","v":0}]
[]
[22,"72-041-151.1","Veszteségmérés 2 végpont között műszerrel,  mérés eredményéről jegyzőkönyv készítése, rézkábel esetén",12,"db",null,null,{"$f":"ROUND(D51*F51, 0)","v":0},{"$f":"ROUND(D51*G51, 0)","v":0}]
[]
[23,"72-041-102-0112135","Komplett átadási dokumentáció elkészítése. (D terv, tanusitások…)",1,"klt",null,null,{"$f":"ROUND(D53*F53, 0)","v":0},{"$f":"ROUND(D53*G53, 0)","v":0}]
[]
[24,"72-041-102-0112135","A kivitelező által a helyszini bejárás során tapasztalt a komplett teljesítéshez szükséges egyébb rezsi anyag, egyébb munkák költsége.",1,"klt",null,null,{"$f":"ROUND(D55*F55, 0)","v":0},{"$f":"ROUND(D55*G55, 0)","v":0}]
[]
[null,null,"Munkanem összesen:",{"$nulls":4},{"$f":"ROUND(SUM(H2:H56),0)","v":400},{"$f":"ROUND(SUM(I2:I56),0)","v":400}]

{"sheet":"Munka3","index":3,"n_rows":0,"n_cols":0,"rows_kept":0,"cut":false,"hidden":false,"merged":[]}